[Event "*** Titled Tuesday Blitz"]
[Site "Chess.com"]
[Date "2020.11.24"]
[Round "5"]
[White "HackingKid98"]
[Black "ChessWarrior3"]
[Result "1-0"]
[WhiteElo "2333"]
[BlackElo "2084"]
[TimeControl "180+1"]
[EndTime "11:10:50 PST"]
[Termination "HackingKid98 won by resignation"]

1. d4 {[%clk 0:03:00.9]} 1... Nf6 {[%clk 0:02:59.6]} 2. c4 {[%clk 0:03:00.5]}
2... g6 {[%clk 0:02:55.5]} 3. g3 {[%clk 0:02:58.7]} 3... Bg7 {[%clk 0:02:55]} 4.
Bg2 {[%clk 0:02:56.8]} 4... c6 {[%clk 0:02:54.4]} 5. Nf3 {[%clk 0:02:55.5]} 5...
O-O {[%clk 0:02:52.6]} 6. Nc3 {[%clk 0:02:52.7]} 6... d5 {[%clk 0:02:51.7]} 7.
cxd5 {[%clk 0:02:51.7]} 7... cxd5 {[%clk 0:02:52.6]} 8. Ne5 {[%clk 0:02:52.1]}
8... Bf5 {[%clk 0:02:44.8]} 9. O-O {[%clk 0:02:47.8]} 9... e6 {[%clk 0:02:30.5]}
10. Bg5 {[%clk 0:02:26.9]} 10... h6 {[%clk 0:01:51.2]} 11. Bxf6 {[%clk
0:02:17.6]} 11... Bxf6 {[%clk 0:01:52.1]} 12. e4 {[%clk 0:02:16]} 12... dxe4
{[%clk 0:01:50.8]} 13. Nxe4 {[%clk 0:02:16.9]} 13... Bxe4 {[%clk 0:01:36]} 14.
Bxe4 {[%clk 0:02:17.8]} 14... Nd7 {[%clk 0:01:35.5]} 15. Bxb7 {[%clk 0:02:11.1]}
15... Nxe5 {[%clk 0:01:23.1]} 16. Bxa8 {[%clk 0:01:58.2]} 16... Qxa8 {[%clk
0:01:09.8]} 17. dxe5 {[%clk 0:01:57.6]} 17... Bxe5 {[%clk 0:01:10.7]} 18. Qe2
{[%clk 0:01:56.2]} 18... Bd4 {[%clk 0:01:09.5]} 19. Rac1 {[%clk 0:01:52.2]}
19... e5 {[%clk 0:01:06.2]} 20. Rc7 {[%clk 0:01:50.2]} 20... Qd5 {[%clk
0:01:05.8]} 21. b3 {[%clk 0:01:42.5]} 21... e4 {[%clk 0:01:05.5]} 22. Rd1 {[%clk
0:01:35.5]} 22... Qe5 {[%clk 0:01:04.1]} 23. Rc4 {[%clk 0:01:32.3]} 23... Rd8
{[%clk 0:01:03.1]} 24. Kg2 {[%clk 0:01:15.2]} 24... f5 {[%clk 0:00:53.9]} 25.
Rd2 {[%clk 0:01:08.8]} 25... Qd5 {[%clk 0:00:37.9]} 26. Rcxd4 {[%clk 0:00:54.6]}
26... Qxd4 {[%clk 0:00:38.8]} 27. Qc4+ {[%clk 0:00:39.7]} 27... Qxc4 {[%clk
0:00:29.3]} 28. Rxd8+ {[%clk 0:00:40.3]} 1-0

[Event "*** Titled Tuesday Blitz"]
[Site "Chess.com"]
[Date "2020.11.24"]
[Round "5"]
[White "Semen_Khanin"]
[Black "redbaron8888"]
[Result "1-0"]
[WhiteElo "2774"]
[BlackElo "2531"]
[TimeControl "180+1"]
[EndTime "11:10:54 PST"]
[Termination "Semen_Khanin won by resignation"]

1. Nf3 {[%clk 0:03:00.9]} 1... e6 {[%clk 0:03:00.9]} 2. c4 {[%clk 0:02:58.9]}
2... Nf6 {[%clk 0:02:59.8]} 3. b3 {[%clk 0:02:59.1]} 3... b6 {[%clk 0:02:57.7]}
4. Bb2 {[%clk 0:02:58.9]} 4... Bb7 {[%clk 0:02:58.4]} 5. g3 {[%clk 0:02:59.2]}
5... d5 {[%clk 0:02:50.6]} 6. Bg2 {[%clk 0:02:58.7]} 6... Nbd7 {[%clk
0:02:49.3]} 7. O-O {[%clk 0:02:58.5]} 7... dxc4 {[%clk 0:02:47.8]} 8. bxc4
{[%clk 0:02:58.2]} 8... Be7 {[%clk 0:02:48.4]} 9. Nc3 {[%clk 0:02:53.1]} 9...
O-O {[%clk 0:02:48]} 10. e3 {[%clk 0:02:48.5]} 10... Ne4 {[%clk 0:02:39.3]} 11.
Qc2 {[%clk 0:02:41.8]} 11... Nxc3 {[%clk 0:02:34.6]} 12. Bxc3 {[%clk 0:02:39.9]}
12... Bf6 {[%clk 0:02:34.3]} 13. Ng5 {[%clk 0:02:38.4]} 13... Bxg5 {[%clk
0:02:33.6]} 14. Bxb7 {[%clk 0:02:39]} 14... Rb8 {[%clk 0:02:33.7]} 15. Bg2
{[%clk 0:02:38.5]} 15... Bf6 {[%clk 0:02:32.2]} 16. d4 {[%clk 0:02:37.9]} 16...
c5 {[%clk 0:02:23.7]} 17. Rfd1 {[%clk 0:02:31.6]} 17... cxd4 {[%clk 0:02:21.6]}
18. exd4 {[%clk 0:02:31.8]} 18... Qc7 {[%clk 0:02:19.6]} 19. Qa4 {[%clk
0:02:27]} 19... b5 {[%clk 0:02:13]} 20. Qa6 {[%clk 0:02:08.7]} 20... bxc4 {[%clk
0:01:56.7]} 21. Ba5 {[%clk 0:02:04.8]} 21... Qc8 {[%clk 0:01:50]} 22. Qxa7
{[%clk 0:02:03.4]} 22... c3 {[%clk 0:01:35.3]} 23. Rac1 {[%clk 0:02:01.1]} 23...
c2 {[%clk 0:01:35]} 24. Rf1 {[%clk 0:01:59.2]} 24... Bd8 {[%clk 0:01:23.8]} 25.
Bxd8 {[%clk 0:01:47.4]} 25... Rxd8 {[%clk 0:01:24.7]} 26. Qa4 {[%clk 0:01:40.6]}
26... Rb2 {[%clk 0:01:17]} 27. Be4 {[%clk 0:01:40.5]} 27... Nb6 {[%clk
0:01:13.9]} 28. Qa3 {[%clk 0:01:39.7]} 28... Nc4 {[%clk 0:01:12.7]} 29. Qc3
{[%clk 0:01:37.3]} 29... Rxa2 {[%clk 0:01:12.5]} 30. Bxc2 {[%clk 0:01:37.2]}
30... Nd6 {[%clk 0:01:06.6]} 31. Bxh7+ {[%clk 0:01:34.2]} 31... Kxh7 {[%clk
0:01:04.6]} 32. Qd3+ {[%clk 0:01:34.4]} 32... Kg8 {[%clk 0:01:02.5]} 33. Rxc8
{[%clk 0:01:34.4]} 33... Nxc8 {[%clk 0:01:00]} 34. h4 {[%clk 0:01:30.7]} 34...
Ra4 {[%clk 0:00:59.2]} 35. Rd1 {[%clk 0:01:27.2]} 35... Ne7 {[%clk 0:00:58.9]}
36. Qb3 {[%clk 0:01:21.6]} 36... Raxd4 {[%clk 0:00:54.9]} 37. Rxd4 {[%clk
0:01:21.7]} 37... Rxd4 {[%clk 0:00:55.8]} 38. Qb8+ {[%clk 0:01:22.1]} 38... Kh7
{[%clk 0:00:55.9]} 39. Qe8 {[%clk 0:01:22.7]} 39... Nf5 {[%clk 0:00:47.3]} 40.
Qxf7 {[%clk 0:01:22.5]} 40... Re4 {[%clk 0:00:45.8]} 41. h5 {[%clk 0:01:17.6]}
41... Re1+ {[%clk 0:00:44.5]} 42. Kg2 {[%clk 0:01:17.3]} 42... Re2 {[%clk
0:00:42.5]} 43. g4 {[%clk 0:01:13.7]} 43... Nd6 {[%clk 0:00:37.5]} 44. Qg6+
{[%clk 0:01:04.5]} 44... Kh8 {[%clk 0:00:37.3]} 45. Qd3 {[%clk 0:01:05]} 45...
Re5 {[%clk 0:00:35.3]} 46. Qxd6 {[%clk 0:01:04.6]} 1-0

[Event "*** Titled Tuesday Blitz"]
[Site "Chess.com"]
[Date "2020.11.24"]
[Round "5"]
[White "FMJoseHerrera"]
[Black "Qvalda"]
[Result "1-0"]
[WhiteElo "2580"]
[BlackElo "2419"]
[TimeControl "180+1"]
[EndTime "11:10:55 PST"]
[Termination "FMJoseHerrera won by resignation"]

1. Nf3 {[%clk 0:03:00.9]} 1... d5 {[%clk 0:02:57.1]} 2. g3 {[%clk 0:03:00.8]}
2... g6 {[%clk 0:02:53.1]} 3. Bg2 {[%clk 0:03:00.1]} 3... Bg7 {[%clk 0:02:54]}
4. d3 {[%clk 0:03:00.5]} 4... e5 {[%clk 0:02:51.2]} 5. h4 {[%clk 0:03:00.5]}
5... h5 {[%clk 0:02:49.2]} 6. Nc3 {[%clk 0:02:59.4]} 6... Ne7 {[%clk 0:02:49.1]}
7. O-O {[%clk 0:02:58.7]} 7... O-O {[%clk 0:02:48.8]} 8. Ng5 {[%clk 0:02:57.9]}
8... c6 {[%clk 0:02:47.4]} 9. e4 {[%clk 0:02:57.5]} 9... d4 {[%clk 0:02:46.7]}
10. Ne2 {[%clk 0:02:58.1]} 10... c5 {[%clk 0:02:46.5]} 11. f4 {[%clk 0:02:57.9]}
11... Bg4 {[%clk 0:02:45.9]} 12. f5 {[%clk 0:02:56.1]} 12... Nec6 {[%clk
0:02:33.2]} 13. Nh3 {[%clk 0:02:28.1]} 13... Nd7 {[%clk 0:02:23.7]} 14. Nf2
{[%clk 0:02:28.3]} 14... Bxe2 {[%clk 0:02:04.3]} 15. Qxe2 {[%clk 0:02:29.2]}
15... Kh7 {[%clk 0:02:05.1]} 16. Nh3 {[%clk 0:02:18.6]} 16... Qb6 {[%clk
0:01:56.5]} 17. Ng5+ {[%clk 0:02:17.7]} 17... Kg8 {[%clk 0:01:56.4]} 18. Bh3
{[%clk 0:02:08.4]} 18... Nf6 {[%clk 0:01:47.6]} 19. fxg6 {[%clk 0:01:53.1]}
19... fxg6 {[%clk 0:01:48.5]} 20. Ne6 {[%clk 0:01:53.2]} 20... Rf7 {[%clk
0:01:44.9]} 21. Ng5 {[%clk 0:01:10.2]} 21... Rff8 {[%clk 0:01:29.6]} 22. Be6+
{[%clk 0:01:06.9]} 22... Kh8 {[%clk 0:01:29.7]} 23. Bf7 {[%clk 0:01:06.9]} 23...
Ne7 {[%clk 0:01:23.7]} 24. Bd2 {[%clk 0:00:41]} 24... Ng4 {[%clk 0:01:22.8]} 25.
b3 {[%clk 0:00:35.8]} 25... a5 {[%clk 0:01:13.2]} 26. Be6 {[%clk 0:00:35.9]}
26... Nh6 {[%clk 0:01:05.2]} 27. a4 {[%clk 0:00:34.1]} 27... Qc7 {[%clk
0:01:02]} 28. Bc4 {[%clk 0:00:33.4]} 28... Rxf1+ {[%clk 0:00:59.8]} 29. Rxf1
{[%clk 0:00:33]} 29... Rf8 {[%clk 0:00:55.3]} 30. Ne6 {[%clk 0:00:28.6]} 30...
Rxf1+ {[%clk 0:00:54]} 31. Qxf1 {[%clk 0:00:29.5]} 31... Qb8 {[%clk 0:00:46]}
32. Bxh6 {[%clk 0:00:29.1]} 32... Bxh6 {[%clk 0:00:45.7]} 33. Qf6+ {[%clk
0:00:29.7]} 1-0

[Event "*** Titled Tuesday Blitz"]
[Site "Chess.com"]
[Date "2020.11.24"]
[Round "5"]
[White "amintabatabaei"]
[Black "suyu28"]
[Result "0-1"]
[WhiteElo "2939"]
[BlackElo "2628"]
[TimeControl "180+1"]
[EndTime "11:11:01 PST"]
[Termination "suyu28 won by checkmate"]

1. d4 {[%clk 0:03:00.9]} 1... d5 {[%clk 0:02:59.6]} 2. Nf3 {[%clk 0:03:00.6]}
2... Nf6 {[%clk 0:02:59.5]} 3. Bf4 {[%clk 0:03:00.4]} 3... c5 {[%clk 0:02:59.3]}
4. e3 {[%clk 0:03:00.2]} 4... Nc6 {[%clk 0:02:59.8]} 5. c3 {[%clk 0:03:00.5]}
5... Bf5 {[%clk 0:02:51.3]} 6. Qb3 {[%clk 0:02:49.3]} 6... Qb6 {[%clk
0:02:49.3]} 7. dxc5 {[%clk 0:02:46.5]} 7... Qxb3 {[%clk 0:02:32.6]} 8. axb3
{[%clk 0:02:47.4]} 8... e6 {[%clk 0:02:10.7]} 9. b4 {[%clk 0:02:40.7]} 9... Be7
{[%clk 0:02:11.2]} 10. h3 {[%clk 0:02:40.1]} 10... O-O {[%clk 0:02:10.8]} 11.
Nbd2 {[%clk 0:02:40.1]} 11... a5 {[%clk 0:02:10.2]} 12. b5 {[%clk 0:02:17]}
12... Nd8 {[%clk 0:02:10.5]} 13. b4 {[%clk 0:02:10.8]} 13... a4 {[%clk 0:02:11]}
14. b6 {[%clk 0:01:56.6]} 14... a3 {[%clk 0:01:57.2]} 15. Bb5 {[%clk 0:01:55.8]}
15... Ne4 {[%clk 0:01:38.7]} 16. Nxe4 {[%clk 0:01:54.1]} 16... Bxe4 {[%clk
0:01:39.6]} 17. Ke2 {[%clk 0:01:45.9]} 17... Bxf3+ {[%clk 0:01:26]} 18. Kxf3
{[%clk 0:01:39.5]} 18... Bf6 {[%clk 0:01:26.9]} 19. Rhc1 {[%clk 0:01:36.2]}
19... e5 {[%clk 0:01:26.7]} 20. Bh2 {[%clk 0:01:35]} 20... Ne6 {[%clk
0:01:13.4]} 21. Ke2 {[%clk 0:01:34.6]} 21... d4 {[%clk 0:01:10.3]} 22. Bc4
{[%clk 0:01:31.1]} 22... dxc3 {[%clk 0:01:05.5]} 23. Bxe6 {[%clk 0:01:31.2]}
23... fxe6 {[%clk 0:01:05.9]} 24. e4 {[%clk 0:01:32.1]} 24... Ra4 {[%clk
0:00:59.6]} 25. Rxa3 {[%clk 0:00:35.8]} 25... Rxa3 {[%clk 0:00:59.1]} 26. Kd3
{[%clk 0:00:27.5]} 26... Rd8+ {[%clk 0:00:57.1]} 27. Kc4 {[%clk 0:00:26.5]}
27... Rd4+ {[%clk 0:00:44.8]} 28. Kb5 {[%clk 0:00:26.9]} 28... Rb3 {[%clk
0:00:45.2]} 29. c6 {[%clk 0:00:25.7]} 29... Rbxb4+ {[%clk 0:00:38.4]} 30. Ka5
{[%clk 0:00:25.4]} 30... Ra4+ {[%clk 0:00:38.1]} 31. Kb5 {[%clk 0:00:25.4]}
31... Rdb4+ {[%clk 0:00:39]} 32. Kc5 {[%clk 0:00:25.7]} 32... Be7# {[%clk
0:00:39.9]} 0-1

[Event "*** Titled Tuesday Blitz"]
[Site "Chess.com"]
[Date "2020.11.24"]
[Round "5"]
[White "Eliwood44"]
[Black "PaulfromSPb"]
[Result "0-1"]
[WhiteElo "2471"]
[BlackElo "2674"]
[TimeControl "180+1"]
[EndTime "11:11:02 PST"]
[Termination "PaulfromSPb won by resignation"]

1. d4 {[%clk 0:03:00.9]} 1... Nf6 {[%clk 0:02:57.6]} 2. Nf3 {[%clk 0:02:56.2]}
2... e6 {[%clk 0:02:56.7]} 3. e3 {[%clk 0:02:56.2]} 3... c5 {[%clk 0:02:54.6]}
4. Bd3 {[%clk 0:02:55.8]} 4... b6 {[%clk 0:02:54.2]} 5. O-O {[%clk 0:02:55.6]}
5... Bb7 {[%clk 0:02:54.1]} 6. c4 {[%clk 0:02:55.6]} 6... Be7 {[%clk 0:02:53.2]}
7. Nc3 {[%clk 0:02:55.4]} 7... O-O {[%clk 0:02:52.5]} 8. d5 {[%clk 0:02:54.9]}
8... exd5 {[%clk 0:02:52.2]} 9. cxd5 {[%clk 0:02:55.8]} 9... d6 {[%clk
0:02:51.8]} 10. e4 {[%clk 0:02:55.8]} 10... Nbd7 {[%clk 0:02:51.5]} 11. Bf4
{[%clk 0:02:55.1]} 11... a6 {[%clk 0:02:49.2]} 12. a4 {[%clk 0:02:54.7]} 12...
Nh5 {[%clk 0:02:47.8]} 13. Be3 {[%clk 0:02:48.5]} 13... Re8 {[%clk 0:02:47.4]}
14. e5 {[%clk 0:02:35]} 14... dxe5 {[%clk 0:02:43.1]} 15. Nxe5 {[%clk
0:01:54.5]} 15... Nxe5 {[%clk 0:02:33.5]} 16. Bxh7+ {[%clk 0:01:53.9]} 16...
Kxh7 {[%clk 0:02:34.4]} 17. Qxh5+ {[%clk 0:01:53.5]} 17... Kg8 {[%clk
0:02:35.3]} 18. Qxe5 {[%clk 0:01:53.5]} 18... Bf6 {[%clk 0:02:34.3]} 19. Qg3
{[%clk 0:01:46.5]} 19... Bxc3 {[%clk 0:02:24.6]} 20. bxc3 {[%clk 0:01:46.4]}
20... Qxd5 {[%clk 0:02:24.5]} 21. Rad1 {[%clk 0:01:35.7]} 21... Qh5 {[%clk
0:01:58.7]} 22. Rd7 {[%clk 0:01:26.8]} 22... Be4 {[%clk 0:01:53.4]} 23. Rd6
{[%clk 0:01:19.1]} 23... b5 {[%clk 0:01:44.6]} 24. axb5 {[%clk 0:01:14.5]} 24...
axb5 {[%clk 0:01:45.5]} 25. Rh6 {[%clk 0:00:55]} 25... Qf5 {[%clk 0:01:44.3]}
26. Rh4 {[%clk 0:00:51.9]} 26... b4 {[%clk 0:01:43.1]} 27. cxb4 {[%clk
0:00:46.6]} 27... cxb4 {[%clk 0:01:44]} 28. Rg4 {[%clk 0:00:41.5]} 28... g6
{[%clk 0:01:42.9]} 29. Rg5 {[%clk 0:00:37.3]} 29... Qf6 {[%clk 0:01:41.3]} 30.
Bf4 {[%clk 0:00:21.5]} 30... Ra1 {[%clk 0:01:27]} 31. Bc1 {[%clk 0:00:08.2]}
31... Rc8 {[%clk 0:01:21.6]} 32. Qe3 {[%clk 0:00:05.3]} 32... Bd3 {[%clk
0:01:16.4]} 33. Re1 {[%clk 0:00:05]} 33... Qc3 {[%clk 0:01:12.8]} 34. Re5 {[%clk
0:00:03.9]} 34... Rxc1 {[%clk 0:01:09.2]} 35. Re8+ {[%clk 0:00:03.8]} 35... Rxe8
{[%clk 0:01:08]} 36. Qxe8+ {[%clk 0:00:04.7]} 36... Kg7 {[%clk 0:01:08.1]} 0-1

[Event "*** Titled Tuesday Blitz"]
[Site "Chess.com"]
[Date "2020.11.24"]
[Round "5"]
[White "kkpanu9"]
[Black "Tenamu"]
[Result "0-1"]
[WhiteElo "2061"]
[BlackElo "2316"]
[TimeControl "180+1"]
[EndTime "11:11:02 PST"]
[Termination "Tenamu won on time"]

1. e4 {[%clk 0:03:00.9]} 1... e6 {[%clk 0:03:00.4]} 2. d3 {[%clk 0:03:00.6]}
2... d5 {[%clk 0:03:00.7]} 3. Nd2 {[%clk 0:03:01.1]} 3... Nf6 {[%clk 0:03:00.6]}
4. Ngf3 {[%clk 0:03:01.3]} 4... Be7 {[%clk 0:02:59.7]} 5. g3 {[%clk 0:03:01.2]}
5... O-O {[%clk 0:03:00]} 6. Bg2 {[%clk 0:03:01.5]} 6... c5 {[%clk 0:03:00.6]}
7. O-O {[%clk 0:03:01.6]} 7... Nc6 {[%clk 0:03:00.8]} 8. Re1 {[%clk 0:03:01.7]}
8... b5 {[%clk 0:02:57.8]} 9. e5 {[%clk 0:03:00.8]} 9... Nd7 {[%clk 0:02:57.4]}
10. Nf1 {[%clk 0:03:01.4]} 10... c4 {[%clk 0:02:55.2]} 11. h4 {[%clk 0:02:41.8]}
11... Nc5 {[%clk 0:02:43.4]} 12. Ne3 {[%clk 0:02:13.8]} 12... Ba6 {[%clk
0:02:36.3]} 13. Ng4 {[%clk 0:02:00.4]} 13... b4 {[%clk 0:02:29.5]} 14. Bg5
{[%clk 0:01:50.7]} 14... cxd3 {[%clk 0:02:17.5]} 15. Bf1 {[%clk 0:01:00.9]}
15... dxc2 {[%clk 0:02:11.1]} 16. Qxc2 {[%clk 0:01:00.6]} 16... Bxf1 {[%clk
0:02:12]} 17. Kxf1 {[%clk 0:00:54.4]} 17... Rc8 {[%clk 0:02:12.1]} 18. Bxe7
{[%clk 0:00:38.9]} 18... Qxe7 {[%clk 0:02:10.2]} 19. Qe2 {[%clk 0:00:38.3]}
19... Ne4 {[%clk 0:02:07.4]} 20. Rac1 {[%clk 0:00:31.8]} 20... a5 {[%clk
0:01:54.7]} 21. Qb5 {[%clk 0:00:27.5]} 21... Qd7 {[%clk 0:01:44.6]} 22. Nd4
{[%clk 0:00:20]} 22... Nb8 {[%clk 0:01:30.3]} 23. Qxa5 {[%clk 0:00:15.1]} 23...
Nd2+ {[%clk 0:01:25]} 24. Kg1 {[%clk 0:00:14.8]} 24... Nc4 {[%clk 0:01:25.9]}
25. Qxb4 {[%clk 0:00:13.7]} 25... Na6 {[%clk 0:01:26.1]} 26. Qb5 {[%clk
0:00:10.6]} 26... Qa7 {[%clk 0:01:21.6]} 27. Nb3 {[%clk 0:00:09.2]} 27... Rb8
{[%clk 0:01:15.2]} 28. Qa4 {[%clk 0:00:08.8]} 28... Rfc8 {[%clk 0:01:06.8]} 29.
a3 {[%clk 0:00:06.8]} 29... Qb6 {[%clk 0:01:03.6]} 30. Na1 {[%clk 0:00:03.3]}
30... Nc5 {[%clk 0:01:00.1]} 31. Qc2 {[%clk 0:00:02.6]} 31... Qxb2 {[%clk
0:00:58.5]} 0-1

[Event "*** Titled Tuesday Blitz"]
[Site "Chess.com"]
[Date "2020.11.24"]
[Round "5"]
[White "Trickov"]
[Black "TheCairnTerrier"]
[Result "1-0"]
[WhiteElo "2356"]
[BlackElo "2162"]
[TimeControl "180+1"]
[EndTime "11:11:05 PST"]
[Termination "Trickov won on time"]

1. d4 {[%clk 0:02:52.3]} 1... Nf6 {[%clk 0:02:59.5]} 2. Nf3 {[%clk 0:02:48]}
2... g6 {[%clk 0:02:59.2]} 3. c4 {[%clk 0:02:41.6]} 3... Bg7 {[%clk 0:02:59]} 4.
g3 {[%clk 0:02:42.2]} 4... O-O {[%clk 0:02:57.9]} 5. Bg2 {[%clk 0:02:42.8]} 5...
d6 {[%clk 0:02:57.3]} 6. O-O {[%clk 0:02:42.5]} 6... c6 {[%clk 0:02:57.7]} 7.
Nc3 {[%clk 0:02:42.9]} 7... Qa5 {[%clk 0:02:57.5]} 8. e4 {[%clk 0:02:40.2]} 8...
Bg4 {[%clk 0:02:56.9]} 9. h3 {[%clk 0:02:37.1]} 9... Bxf3 {[%clk 0:02:57]} 10.
Bxf3 {[%clk 0:02:36.9]} 10... e5 {[%clk 0:02:55.9]} 11. Be3 {[%clk 0:02:18.2]}
11... exd4 {[%clk 0:02:37]} 12. Bxd4 {[%clk 0:02:16.8]} 12... Re8 {[%clk
0:02:26.7]} 13. Rc1 {[%clk 0:02:06.3]} 13... Nbd7 {[%clk 0:01:54.5]} 14. Bg2
{[%clk 0:02:00.1]} 14... Ne5 {[%clk 0:01:51]} 15. b3 {[%clk 0:01:56.2]} 15...
Rad8 {[%clk 0:01:38]} 16. Be3 {[%clk 0:01:41.2]} 16... Nfd7 {[%clk 0:00:54]} 17.
Qc2 {[%clk 0:01:28.7]} 17... Nc5 {[%clk 0:00:51.6]} 18. Rfd1 {[%clk 0:01:26.7]}
18... Ned7 {[%clk 0:00:38.2]} 19. Rxd6 {[%clk 0:01:16.6]} 19... Bxc3 {[%clk
0:00:37.4]} 20. Qxc3 {[%clk 0:01:14]} 20... Qxc3 {[%clk 0:00:37.7]} 21. Rxc3
{[%clk 0:01:13.1]} 21... Nxe4 {[%clk 0:00:14]} 22. Bxe4 {[%clk 0:01:11.8]} 22...
Rxe4 {[%clk 0:00:14.9]} 23. Rcd3 {[%clk 0:01:10.8]} 23... Re7 {[%clk 0:00:13.5]}
24. Bg5 {[%clk 0:01:01.8]} 24... Re1+ {[%clk 0:00:04]} 25. Kg2 {[%clk
0:01:01.2]} 25... f6 {[%clk 0:00:03.4]} 26. Bxf6 {[%clk 0:00:56.8]} 26... Rf8
{[%clk 0:00:03.9]} 27. Bc3 {[%clk 0:00:53.2]} 1-0

[Event "*** Titled Tuesday Blitz"]
[Site "Chess.com"]
[Date "2020.11.24"]
[Round "5"]
[White "ShapkinAnatoliy"]
[Black "IANOV0007"]
[Result "1-0"]
[WhiteElo "2653"]
[BlackElo "2409"]
[TimeControl "180+1"]
[EndTime "11:11:08 PST"]
[Termination "ShapkinAnatoliy won by resignation"]

1. d4 {[%clk 0:03:00.9]} 1... d6 {[%clk 0:02:59.5]} 2. e4 {[%clk 0:03:00.1]}
2... Nf6 {[%clk 0:02:58.7]} 3. Nc3 {[%clk 0:03:00.4]} 3... c6 {[%clk 0:02:58.6]}
4. a4 {[%clk 0:02:59.7]} 4... Qa5 {[%clk 0:02:57.6]} 5. Bd2 {[%clk 0:02:50.1]}
5... e5 {[%clk 0:02:57.2]} 6. Nf3 {[%clk 0:02:48.4]} 6... Bg4 {[%clk 0:02:56.5]}
7. dxe5 {[%clk 0:02:41]} 7... dxe5 {[%clk 0:02:56]} 8. h3 {[%clk 0:02:39.3]}
8... Bxf3 {[%clk 0:02:54.7]} 9. Qxf3 {[%clk 0:02:38.6]} 9... Bb4 {[%clk
0:02:54.5]} 10. Bc4 {[%clk 0:02:28.8]} 10... Nbd7 {[%clk 0:02:54.3]} 11. O-O
{[%clk 0:02:28]} 11... O-O {[%clk 0:02:53.2]} 12. Rad1 {[%clk 0:02:00.9]} 12...
Rad8 {[%clk 0:02:45.3]} 13. Bg5 {[%clk 0:01:54.9]} 13... Bxc3 {[%clk 0:02:36.6]}
14. bxc3 {[%clk 0:01:53.8]} 14... Qxa4 {[%clk 0:02:34.2]} 15. Bb3 {[%clk
0:01:30.9]} 15... Qa3 {[%clk 0:02:33.4]} 16. Rxd7 {[%clk 0:01:01.8]} 16... Rxd7
{[%clk 0:02:26.6]} 17. Bxf6 {[%clk 0:01:01.6]} 17... Qd6 {[%clk 0:02:20.2]} 18.
Bg5 {[%clk 0:00:55.4]} 18... Qg6 {[%clk 0:02:16.4]} 19. Be3 {[%clk 0:00:52.1]}
19... b5 {[%clk 0:02:13.1]} 20. Ra1 {[%clk 0:00:50.3]} 20... Ra8 {[%clk
0:02:11]} 21. Bc5 {[%clk 0:00:43.6]} 21... a5 {[%clk 0:02:09.5]} 22. c4 {[%clk
0:00:36.2]} 22... a4 {[%clk 0:02:06.6]} 23. Ba2 {[%clk 0:00:36.6]} 23... Rad8
{[%clk 0:02:01.6]} 24. cxb5 {[%clk 0:00:35.6]} 24... cxb5 {[%clk 0:01:58.8]} 25.
Bd5 {[%clk 0:00:36]} 25... h6 {[%clk 0:01:54.9]} 26. c3 {[%clk 0:00:35.4]} 26...
Kh8 {[%clk 0:01:49.1]} 27. Bb4 {[%clk 0:00:35.6]} 27... f6 {[%clk 0:01:47.3]}
28. g4 {[%clk 0:00:35.5]} 28... h5 {[%clk 0:01:45.8]} 29. Qf5 {[%clk 0:00:35.3]}
29... Qxf5 {[%clk 0:01:45.1]} 30. gxf5 {[%clk 0:00:36.2]} 30... Rc7 {[%clk
0:01:42.8]} 31. Ba5 {[%clk 0:00:34.5]} 31... Rdc8 {[%clk 0:01:41.8]} 32. Bxc7
{[%clk 0:00:34.1]} 32... Rxc7 {[%clk 0:01:41.9]} 33. c4 {[%clk 0:00:34.7]} 33...
bxc4 {[%clk 0:01:39.7]} 34. Rxa4 {[%clk 0:00:35.2]} 34... c3 {[%clk 0:01:39.8]}
35. Ra1 {[%clk 0:00:35.8]} 35... Kh7 {[%clk 0:01:35.9]} 36. Kf1 {[%clk
0:00:34.8]} 36... g6 {[%clk 0:01:35.9]} 37. fxg6+ {[%clk 0:00:34.4]} 37... Kxg6
{[%clk 0:01:35.5]} 38. h4 {[%clk 0:00:34.4]} 38... f5 {[%clk 0:01:34.6]} 39. Ke2
{[%clk 0:00:30.5]} 39... fxe4 {[%clk 0:01:34.4]} 40. Bxe4+ {[%clk 0:00:31.4]}
40... Kf6 {[%clk 0:01:34]} 41. Rc1 {[%clk 0:00:29.3]} 41... Rc4 {[%clk
0:01:31.8]} 42. f3 {[%clk 0:00:29.5]} 42... Ke6 {[%clk 0:01:30]} 43. Kd3 {[%clk
0:00:26.8]} 43... Rd4+ {[%clk 0:01:29]} 44. Kxc3 {[%clk 0:00:27.2]} 44... Ra4
{[%clk 0:01:28]} 45. Rb1 {[%clk 0:00:21.6]} 45... Ra3+ {[%clk 0:01:27.1]} 46.
Rb3 {[%clk 0:00:20.7]} 46... Ra2 {[%clk 0:01:26.6]} 47. Rb6+ {[%clk 0:00:20.5]}
47... Ke7 {[%clk 0:01:26.5]} 48. Rh6 {[%clk 0:00:21.4]} 48... Ra3+ {[%clk
0:01:20.5]} 49. Kc4 {[%clk 0:00:20.5]} 1-0

[Event "*** Titled Tuesday Blitz"]
[Site "Chess.com"]
[Date "2020.11.24"]
[Round "5"]
[White "annamaja"]
[Black "Anna_ChessMate"]
[Result "0-1"]
[WhiteElo "2293"]
[BlackElo "2578"]
[TimeControl "180+1"]
[EndTime "11:11:12 PST"]
[Termination "Anna_ChessMate won by checkmate"]

1. e4 {[%clk 0:03:00.9]} 1... c6 {[%clk 0:02:56.3]} 2. d4 {[%clk 0:03:00.7]}
2... d5 {[%clk 0:02:57.2]} 3. exd5 {[%clk 0:03:00.8]} 3... cxd5 {[%clk
0:02:55.9]} 4. Nf3 {[%clk 0:03:01.5]} 4... Nc6 {[%clk 0:02:56.3]} 5. Bd3 {[%clk
0:03:01.6]} 5... Nf6 {[%clk 0:02:56.4]} 6. O-O {[%clk 0:03:01.6]} 6... Bg4
{[%clk 0:02:56.5]} 7. c3 {[%clk 0:03:01.5]} 7... e6 {[%clk 0:02:56.9]} 8. Bf4
{[%clk 0:02:59.9]} 8... Bd6 {[%clk 0:02:56.8]} 9. Bxd6 {[%clk 0:02:57.2]} 9...
Qxd6 {[%clk 0:02:57.7]} 10. Nbd2 {[%clk 0:02:56.3]} 10... O-O {[%clk 0:02:57.3]}
11. h3 {[%clk 0:02:54.7]} 11... Bh5 {[%clk 0:02:56.6]} 12. Re1 {[%clk
0:02:51.2]} 12... Rac8 {[%clk 0:02:56.1]} 13. Qb3 {[%clk 0:02:40.6]} 13... Rc7
{[%clk 0:02:37.2]} 14. Ne5 {[%clk 0:02:38.5]} 14... Rfc8 {[%clk 0:02:35.4]} 15.
Re3 {[%clk 0:02:28.1]} 15... a6 {[%clk 0:02:24.5]} 16. f4 {[%clk 0:02:17.2]}
16... b5 {[%clk 0:02:21.6]} 17. g4 {[%clk 0:02:11.7]} 17... Bg6 {[%clk
0:02:20.3]} 18. f5 {[%clk 0:01:46.6]} 18... exf5 {[%clk 0:02:19.7]} 19. gxf5
{[%clk 0:01:47.5]} 19... Bh5 {[%clk 0:02:20]} 20. Nxc6 {[%clk 0:01:18.3]} 20...
Rxc6 {[%clk 0:02:13]} 21. a4 {[%clk 0:01:18.1]} 21... Qf4 {[%clk 0:02:07.8]} 22.
Rae1 {[%clk 0:01:14.3]} 22... bxa4 {[%clk 0:02:08.2]} 23. Qxa4 {[%clk
0:01:10.5]} 23... g6 {[%clk 0:02:02.5]} 24. Bxa6 {[%clk 0:00:47.8]} 24... R8c7
{[%clk 0:01:13.6]} 25. Bb5 {[%clk 0:00:47.4]} 25... Rb6 {[%clk 0:01:09]} 26.
fxg6 {[%clk 0:00:40]} 26... Bxg6 {[%clk 0:01:04.6]} 27. Qa5 {[%clk 0:00:21.3]}
27... Rcb7 {[%clk 0:01:02.3]} 28. Bd3 {[%clk 0:00:11.2]} 28... Rxb2 {[%clk
0:01:01.3]} 29. Bxg6 {[%clk 0:00:06.5]} 29... hxg6 {[%clk 0:01:02.2]} 30. R1e2
{[%clk 0:00:02.1]} 30... Rxd2 {[%clk 0:01:00.9]} 31. Rxd2 {[%clk 0:00:01.6]}
31... Qxe3+ {[%clk 0:01:00.8]} 32. Rf2 {[%clk 0:00:01.8]} 32... Ne4 {[%clk
0:00:57.3]} 33. Qa8+ {[%clk 0:00:01.6]} 33... Kg7 {[%clk 0:00:56.4]} 34. Qxb7
{[%clk 0:00:01.5]} 34... Qxf2+ {[%clk 0:00:56.9]} 35. Kh1 {[%clk 0:00:01.2]}
35... Ng3# {[%clk 0:00:57.8]} 0-1